Cogmind - Beta 16.1 @@@ ROGUE MODE // 2026.03.21 @ 09:43:32 Player: epicnox Result: Self-destructed Performance ------------- Evolutions (3) 1500 Regions Visited (8) 1600 Robots Destroyed (71) 355 Value Destroyed (1846) 1846 Prototype IDs (1) 20 Alien Tech Used (0) 0 Bonus (1181) 1181 TOTAL SCORE: 6502 Bonus ------- High Alert Combat Kills 258 Follower Combat Kills 723 Entered Garrisons 200 Cogmind --------- Core Integrity 49/700 Matter 116/300 Energy 100/100 System Corruption 3% Temperature Cool (11) Movement Core (1450) Ox28 Location -7/Storage Parts ------- > --- POWER (1) -------- (None) > --- PROPULSION (4) --- (None) > --- UTILITY (4) ------ Huge Storage Unit Advanced Targeting Computer Core Analyzer Improved Medium Armor Plating > --- WEAPON (4) ------- (None) > --- INVENTORY (25) --- Improved Heat Sink Advanced Heat Sink Improved Sensor Array Hardened Medium Armor Plating Hardened Medium Armor Plating Hardened Medium Armor Plating Hardened Medium Armor Plating Hardened Medium Armor Plating Hardened Medium Armor Plating System Shield Peak State ------------ > --- POWER ------------ Heavy Deuterium Engine > --- PROPULSION ------- Wheel Backup Propulsion III > --- UTILITY ---------- Advanced Heat Sink Huge Storage Unit Advanced Targeting Computer Core Analyzer > --- WEAPON ----------- Advanced Assault Cannon Advanced Assault Cannon Advanced Assault Cannon Advanced Assault Cannon > --- INVENTORY -------- Light Treads Improved Heat Sink Improved Sensor Array Matter Filter Hardened Medium Armor Plating Hardened Medium Armor Plating Hardened Medium Armor Plating Hardened Medium Armor Plating Hardened Medium Armor Plating Hardened Medium Armor Plating Improved Medium Armor Plating System Shield High-powered Shotgun Advanced Assault Cannon Rocket Launcher Rocket Launcher Heavy Rocket Launcher [Rating: 43] Favorites ----------- Power Heavy Deuterium Engine Engine Heavy Deuterium Engine Propulsion Wheel Treads Light Treads Leg Aluminum Leg Wheel Wheel Hover Unit Backup Propulsion III Utility Advanced Targeting Computer Device Advanced Heat Sink Storage Huge Storage Unit Processor Advanced Targeting Computer Protection Hardened Medium Armor Plating Weapon Advanced Assault Cannon Ballistic Gun Assault Rifle Ballistic Cannon Advanced Assault Cannon Launcher Rocket Launcher Build | -11 -10 -10 -8 -7 -7 -7 -7 -7 ------- Run | Yrd Mat Sub Mat Fac Was Fac Gar Sto Slots Evolved 6 | . . . 4 2 . . . . Power . | . . . . . . . . . Propulsion 2 | . . . 2 . . . . . Utility 2 | . . . . 2 . . . . Weapon 2 | . . . 2 . . . . . Parts Attached 54 | 9 . 1 16 17 . . 8 3 Power 4 | 1 . 1 . 2 . . . . Engine 4 | 1 . 1 . 2 . . . . Core . | . . . . . . . . . Reactor . | . . . . . . . . . Propulsion 22 | 4 . . 6 4 . . 8 . Treads 5 | . . . 1 . . . 4 . Leg 4 | . . . . . . . 4 . Wheel 13 | 4 . . 5 4 . . . . Hover . | . . . . . . . . . Flight . | . . . . . . . . . Utility 13 | 2 . . 3 7 . . . 1 Device 5 | 1 . . . 3 . . . 1 Storage 3 | 1 . . . 2 . . . . Processor 2 | . . . 1 1 . . . . Hackware . | . . . . . . . . . Protection 3 | . . . 2 1 . . . . Artifact . | . . . . . . . . . Weapon 15 | 2 . . 7 4 . . . 2 Energy Gun . | . . . . . . . . . Energy Cannon . | . . . . . . . . . Ballistic Gun 5 | 2 . . 3 . . . . . Ballistic Cannon 7 | . . . 4 3 . . . . Launcher 3 | . . . . 1 . . . 2 Special Weapon . | . . . . . . . . . Impact Weapon . | . . . . . . . . . Slashing Weapon . | . . . . . . . . . Piercing Weapon . | . . . . . . . . . Special Melee Weapon . | . . . . . . . . . Unidentified Prototypes 1 | . . . . 1 . . . . Parts Lost 28 | . . 2 5 5 . . 2 14 Power 2 | . . . . 1 . . . 1 Propulsion 12 | . . . 4 2 . . 2 4 Utility 3 | . . 1 1 . . . . 1 Weapon 11 | . . 1 . 2 . . . 8 Highest Loss Streak 12 | . . 1 3 5 . . 2 12 To Critical Strikes . | . . . . . . . . . Average Backups 13 | 2 5 5 4 9 14 16 17 14 Power . | . . . . . . . . . Propulsion . | 2 5 5 1 . . . 1 . Utility 8 | . . . 2 5 9 11 11 10 Weapon 3 | . . . . 3 5 5 5 3 Tool/Special . | . . . . . . . . . Unused Backups 10 | . . . 3 . . . 1 6 Power . | . . . . . . . . . Propulsion 2 | . . . 1 . . . 1 . Utility 8 | . . . 2 . . . . 6 Weapon . | . . . . . . . . . Tool/Special . | . . . . . . . . . Average Slot Usage (%) 88 | . 100 90 79 92 92 92 89 82 Engine 7 | . 14 14 9 6 7 7 7 5 Treads 5 | . . . . . . . 5 21 Leg 5 | . . . . . . . 12 . Wheel 11 | . 28 28 27 24 23 23 1 . Device 5 | . 14 6 . 3 7 7 7 4 Storage 6 | . 14 14 1 5 7 7 7 7 Processor 13 | . . . 8 14 15 15 15 15 Protection 1 | . . . 7 4 . . . 1 Ballistic Gun 2 | . 28 27 21 . . . . . Ballistic Cannon 24 | . . . 2 28 30 30 30 20 Peak Build Rating 43 | 7 7 8 27 41 42 42 43 43 Average Rating 35 | 5 7 7 16 37 41 42 41 34 On Entrance 23 | . 7 7 6 27 40 42 42 43 Avg Prop Armor Cover (%) 6 | . . . 6 . . . . . Naked Turns . | . . . . . . . . . Heaviest Build 118 | 14 14 16 39 116 116 116 116 118 Greatest Support 80 | 32 20 20 40 40 30 30 80 80 Greatest Overweight (x) 32 | . . . 1 4 3 3 14 32 Average Overweight (x) 1 | . . . . 1 3 3 2 2 Largest Inventory Capacity 25 | 8 8 8 8 25 25 25 25 25 Average Capacity 20 | 7 8 8 5 12 25 25 25 25 Most Carried 21 | 5 5 6 7 14 16 16 21 16 Average Carried 13 | 2 5 5 4 9 14 16 17 13 Final Capacity 25 | 8 8 8 5 25 25 25 25 25 Final Carried 16 | 5 5 6 5 12 16 16 16 10 Class Distribution -------------------- 69% | Scavenger-Gunner 15% | Gunner 9% | Mutant 5% | Scavenger-Mutant Dominant Class ---------------- Mutant | -10/Materials Mutant | -10/Subcaves Scavenger-Mutant | -8/Materials Scavenger-Gunner | -7/Factory Scavenger-Gunner | -7/Waste Scavenger-Gunner | -7/Factory Scavenger-Gunner | -7/Garrison Scavenger-Gunner | -7/Storage Resources | -11 -10 -10 -8 -7 -7 -7 -7 -7 ----------- Run | Yrd Mat Sub Mat Fac Was Fac Gar Sto Matter Collected 2592 | 322 . 10 418 753 222 . 426 441 Remotely . | . . . . . . . . . Salvage Created 1966 | 123 . . 509 794 . . 212 328 Parts 134 | 10 . . 34 58 . . 10 22 Haulers Intercepted 4 | . . . 1 1 . . . 2 Recyclers Shooed 3 | . . . 1 2 . . . . Parts Field Recycled . | . . . . . . . . . Retrieved Matter . | . . . . . . . . . Parts Self-Destructed 8 | . . 8 . . . . . . Prevented . | . . . . . . . . . Parts Restored . | . . . . . . . . . Kills | -11 -10 -10 -8 -7 -7 -7 -7 -7 ------- Run | Yrd Mat Sub Mat Fac Was Fac Gar Sto Combat Hostiles Destroyed 32 | . . . 6 11 . . 7 8 Melee 1 | . . . . 1 . . . . Guns 7 | . . . 6 . . . . 1 Cannons 21 | . . . . 9 . . 7 5 AOE 3 | . . . . 1 . . . 2 Classes Destroyed 14 | 2 . . 4 5 . . 2 1 Worker 9 | . . . . 6 . . . 3 Builder 10 | . . . 2 4 . . . 4 Tunneler 4 | 3 . . 1 . . . . . Hauler 4 | . . . 1 1 . . . 2 Recycler 8 | 1 . . 2 5 . . . . Mechanic 1 | . . . . 1 . . . . Watcher 3 | . . . . 2 . . . 1 Swarmer 4 | . . . . 4 . . . . Grunt 19 | . . . 5 6 . . 2 6 Brawler 1 | . . . . . . . . 1 Duelist 1 | . . . . . . . 1 . Sentry 5 | . . . . . . . 4 1 Hunter 1 | . . . 1 . . . . . Programmer 1 | . . . . 1 . . . . Best Kill Streak 8 | 4 . . 5 8 . . 2 6 Combat Bots Only 4 | . . . 3 4 . . 2 3 Max Kills in Single Turn 5 | 1 . . 1 5 . . 1 4 Gunslinging . | . . . . . . . . . Exploded 1 | . . . . 1 . . . 1 Melee 1 | . . . . 1 . . . . Uniques/NPCs Destroyed . | . . . . . . . . . Combat | -11 -10 -10 -8 -7 -7 -7 -7 -7 -------- Run | Yrd Mat Sub Mat Fac Was Fac Gar Sto Hostile Shots Fired 349 | . . 3 75 77 . . 51 143 Missed 98 | . . . 23 20 . . 18 37 Hits 251 | . . 3 52 57 . . 33 106 Projectile 251 | . . 3 52 57 . . 33 106 Critical Strikes 8 | . . . 1 1 . . 1 5 Damage Taken 4441 | . 1 196 801 1010 . . 598 1835 Core 812 | . . 48 113 169 . . 107 375 Absorbed by Shields . | . . . . . . . . . Regen/Repaired (Parts) 62 | . . . . . 28 . 34 . Core Remaining (%) 86 | 100 . 80 79 . . . . . Volleys Fired 120 | 8 . . 28 36 . . 15 33 Largest 4 | 2 . . 4 4 . . 4 4 Hottest 160 | 40 . . 93 160 . . 160 160 Shots Fired 353 | 16 . . 77 125 . . 61 74 Gun 99 | 16 . . 77 . . . . 6 Cannon 229 | . . . . 119 . . 61 49 Launcher 25 | . . . . 6 . . . 19 Special . | . . . . . . . . . Kinetic 328 | 16 . . 77 119 . . 61 55 Thermal . | . . . . . . . . . Explosive 25 | . . . . 6 . . . 19 Electromagnetic . | . . . . . . . . . Robot Hit Streak 15 | 7 . . 10 9 . . 10 15 Robot Miss Streak 5 | 2 . . 5 5 . . 4 3 Penetration Max . | . . . . . . . . . Secondary Targets 2 | . . . 2 . . . . . Max Gunslinging Chain 1 | . . . 1 . . . . . Shots Hit Robots 196 | 10 . . 50 58 . . 32 46 Core Hits 121 | 6 . . 27 37 . . 16 35 Critical Kills . | . . . . . . . . . Critical Parts Destroyed . | . . . . . . . . . Critical Strikes 7 | . . . . 3 . . 3 1 Blast 7 | . . . . 3 . . 3 1 Melee Attacks . | . . . . . . . . . Impact . | . . . . . . . . . Slashing . | . . . . . . . . . Piercing . | . . . . . . . . . Sneak Attacks . | . . . . . . . . . Combat Hostiles . | . . . . . . . . . Follow-up Attacks . | . . . . . . . . . Damage Inflicted 6123 | 95 3 . 686 2245 . . 769 2325 Guns 886 | 95 . . 686 . . . . 105 Cannons 3255 | . . . . 1526 . . 769 960 Explosions 1778 | . . . . 518 . . . 1260 Melee . | . . . . . . . . . Ramming 204 | . 3 . . 201 . . . . Kinetic 4141 | 95 . . 686 1526 . . 769 1065 Thermal . | . . . . . . . . . Explosive 1778 | . . . . 518 . . . 1260 Electromagnetic . | . . . . . . . . . Impact . | . . . . . . . . . Slashing . | . . . . . . . . . Piercing . | . . . . . . . . . Highest Corruption 3 | . . . . 3 3 3 3 3 Average Corruption 2 | . . . . 1 3 3 3 3 Corruption Purged . | . . . . . . . . . Corruption Blocked . | . . . . . . . . . Effects 65 | . . . . 3 4 1 37 20 Message Errors 13 | . . . . . . . 8 5 Matter Fused 17 | . . . . 1 2 1 10 3 Heat Flow Errors 8 | . . . . . 1 . 5 2 Energy Discharges 8 | . . . . 1 . . 5 2 Parts Fused 1 | . . . . . . . 1 . Data Loss (minor) 6 | . . . . 1 . . 2 3 Data Loss (major) 4 | . . . . . . . 2 2 Misfires 3 | . . . . . . . 1 2 Alerts 5 | . . . . . 1 . 3 1 Overload Shots . | . . . . . . . . . Overflow Damage 87 | . . . . 43 . . . 44 Projectiles 24 | . . . . 24 . . . . Explosions 62 | . . . . 18 . . . 44 Melee 1 | . . . . 1 . . . . Knockbacks 19 | . . . . 11 . . 2 6 Impact . | . . . . . . . . . Kinetic 18 | . . . . 10 . . 2 6 Secondary 1 | . . . . 1 . . . . Self-Inflicted Damage 350 | . 1 . . 151 . . . 198 Shots 9 | . . . . 2 . . . 7 Rammed 23 | . 1 . . 22 . . . . Targets Rammed 23 | . 1 . . 22 . . . . Kicked . | . . . . . . . . . Crushed . | . . . . . . . . . Highest Temperature 391 | . . . 330 376 168 . 217 391 Average Temperature 108 | . . . 103 101 99 . 50 151 Received Heat Transfer 1575 | . . 9 342 126 . . 132 966 Effects 1 | . . . . . . . . 1 Matter Decay 1 | . . . . . . . . 1 Siege Activations . | . . . . . . . . . Martial Activations . | . . . . . . . . . Shielding Activations . | . . . . . . . . . Robots Disrupted . | . . . . . . . . . Combat Hostiles . | . . . . . . . . . Robots Corrupted . | . . . . . . . . . Combat Hostiles . | . . . . . . . . . Parts Fried . | . . . . . . . . . Impact Corruptions 1 | . . . . 1 . . . . Robots Melted . | . . . . . . . . . Combat Hostiles . | . . . . . . . . . Parts Melted . | . . . . . . . . . Heat Transferred . | . . . . . . . . . Parts Sabotaged . | . . . . . . . . . Parts Stolen . | . . . . . . . . . Parts Stripped . | . . . . . . . . . Power Chain Reactions . | . . . . . . . . . Alert | -11 -10 -10 -8 -7 -7 -7 -7 -7 ------- Run | Yrd Mat Sub Mat Fac Was Fac Gar Sto Maximum Alert Level 3 | . . . . 1 . . 3 2 Low Security (%) 43 | 100 100 . 100 91 100 100 6 . Level 1 4 | . . . . 8 . . 7 . Level 2 37 | . . . . . . . 51 100 Level 3 14 | . . . . . . . 35 . Level 4 . | . . . . . . . . . Level 5 . | . . . . . . . . . High Security . | . . . . . . . . . Max Security . | . . . . . . . . . Peak Influence 1029 | 10 . . 66 219 68 . 1029 518 Initial 501 | . . . . 20 68 . 9 501 Average 360 | 2 . . 20 90 12 . 635 463 Influence Increases 2326 | 20 . . 216 573 . 14 1119 384 Destroy 0b10 Robot/C 1100 | . . . 120 220 . . 600 160 Destroy 0b10 Robot/NC 195 | 20 . . 30 95 . . . 50 Destroy Leader 134 | . . . 22 46 . . 40 26 Allied During Kill 152 | . . . . . . . 152 . Trap Triggered on 0b10 10 | . . . 10 . . . . . Successful Hack 18 | . . . 4 . . 14 . . Disable Machine 165 | . . . 30 105 . . 15 15 Anti-Garrison Action 200 | . . . . . . . 200 . Destroy Structure 277 | . . . . 32 . . 112 133 Lose Combat Pursuer 75 | . . . . 75 . . . . Influence Decreases 1891 | 20 . . 170 424 195 . 104 978 Entered New Map 686 | . . . . 26 127 . 5 528 Time Decay 866 | 20 . . 120 348 68 . . 310 Lost Part 260 | . . . 50 50 . . 20 140 Lost Ally 79 | . . . . . . . 79 . Squads Dispatched 9 | . . . 1 3 . 1 . 4 Investigation 3 | . . . 1 1 . 1 . . Extermination 2 | . . . . 1 . . . 1 Reinforcement 3 | . . . . 1 . . . 2 Assault 1 | . . . . . . . . 1 Garrison . | . . . . . . . . . Intercept . | . . . . . . . . . Searches Triggered . | . . . . . . . . . Construction Impeded 1 | . . . . 1 . . . . Haulers Reinforced 2 | . . . . . . . . 2 Active Scanning Responses . | . . . . . . . . . Cargo Convoy Interrupts . | . . . . . . . . . Stealth | -11 -10 -10 -8 -7 -7 -7 -7 -7 --------- Run | Yrd Mat Sub Mat Fac Was Fac Gar Sto Distress Signals 3 | . . . 1 1 . . . 1 Communications Jammed . | . . . . . . . . . Distress Signals . | . . . . . . . . . Times Spotted 72 | . 1 2 8 22 . . 17 22 Peak Tracking Total 7 | . 1 2 5 5 . . 2 7 Tactical Retreats 3 | . . . . 3 . . . . Traps | -11 -10 -10 -8 -7 -7 -7 -7 -7 ------- Run | Yrd Mat Sub Mat Fac Was Fac Gar Sto Traps Triggered 7 | . . 2 . 1 . . 4 . Indirectly . | . . . . . . . . . Trap Hack Attempts . | . . . . . . . . . Triggered . | . . . . . . . . . Disarmed . | . . . . . . . . . Reprogrammed 4 | . . . 4 . . . . . Reused 1 | . . . 1 . . . . . Traps Extracted . | . . . . . . . . . Installed . | . . . . . . . . . Triggered 1 | . . . 1 . . . . . Machines | -11 -10 -10 -8 -7 -7 -7 -7 -7 ---------- Run | Yrd Mat Sub Mat Fac Was Fac Gar Sto Machines Disabled 11 | . . . 2 7 . . 1 1 Max in Single Turn 2 | . . . 1 2 . . . 1 Machines Repaired . | . . . . . . . . . Machines Dismantled . | . . . . . . . . . Machines Sabotaged . | . . . . . . . . . Overloaded Fab Kills . | . . . . . . . . . Hacking | -11 -10 -10 -8 -7 -7 -7 -7 -7 --------- Run | Yrd Mat Sub Mat Fac Was Fac Gar Sto Machines Accessed 8 | . . . 2 2 . 1 1 2 Terminals 5 | . . . 2 1 . . 1 1 Fabricators . | . . . . . . . . . Repair Stations . | . . . . . . . . . Recycling Units 1 | . . . . . . . . 1 Scanalyzers . | . . . . . . . . . Garrison Access 2 | . . . . 1 . 1 . . Total Hacks 15 | . . . 3 3 . 3 1 5 Successful 4 | . . . 2 . . 1 . 1 Failed 11 | . . . 1 3 . 2 1 4 Catastrophic 4 | . . . . 2 . . 1 1 Database Lockouts . | . . . . . . . . . Manual . | . . . . . . . . . Terminals 8 | . . . 3 1 . . 1 3 Fabricators . | . . . . . . . . . Repair Stations . | . . . . . . . . . Recycling Units 2 | . . . . . . . . 2 Scanalyzers . | . . . . . . . . . Garrison Access 5 | . . . . 2 . 3 . . Terminal Hacks 2 | . . . 2 . . . . . Locate Traps 1 | . . . 1 . . . . . Reprogram Traps 1 | . . . 1 . . . . . Fabricator Hacks . | . . . . . . . . . Repair Station Hacks . | . . . . . . . . . Recycling Unit Hacks 1 | . . . . . . . . 1 Retrieve Matter 1 | . . . . . . . . 1 Scanalyzer . | . . . . . . . . . Garrison Access Hacks 1 | . . . . . . 1 . . Unlock Access 1 | . . . . . . 1 . . Unauthorized Hacks . | . . . . . . . . . Terminals . | . . . . . . . . . Fabricators . | . . . . . . . . . Repair Stations . | . . . . . . . . . Recycling Units . | . . . . . . . . . Scanalyzers . | . . . . . . . . . Garrison Access . | . . . . . . . . . Data Cores Recovered . | . . . . . . . . . Used . | . . . . . . . . . Hacking Detections 6 | . . . 1 2 . 1 1 1 Full Trace Events 2 | . . . . 1 . 1 . . Feedback Events . | . . . . . . . . . Feedback Blocked . | . . . . . . . . . Robot Schematics Acquired . | . . . . . . . . . Robots Built . | . . . . . . . . . Authchips . | . . . . . . . . . Time . | . . . . . . . . . Total Robot Build Rating . | . . . . . . . . . Part Schematics Acquired . | . . . . . . . . . Parts Built . | . . . . . . . . . Authchips . | . . . . . . . . . Time . | . . . . . . . . . Total Part Build Rating . | . . . . . . . . . Part Studies Acquired . | . . . . . . . . . Parts Repaired . | . . . . . . . . . Time . | . . . . . . . . . Parts Recycled . | . . . . . . . . . Recycled Matter . | . . . . . . . . . Retrieved Matter . | . . . . . . . . . Retrieved Components . | . . . . . . . . . Parts Scanalyzed . | . . . . . . . . . Part Schematics Acquired . | . . . . . . . . . Parts Damaged . | . . . . . . . . . Bothacking | -11 -10 -10 -8 -7 -7 -7 -7 -7 ------------ Run | Yrd Mat Sub Mat Fac Was Fac Gar Sto Used RIF Installer . | . . . . . . . . . Robots Hacked . | . . . . . . . . . Non-combat . | . . . . . . . . . Combat . | . . . . . . . . . Robot Hacks Applied . | . . . . . . . . . Relay Couplers Released . | . . . . . . . . . Fabnet Peak Effective % . | . . . . . . . . . Robots Rewired . | . . . . . . . . . Allies Hacked . | . . . . . . . . . Hacks Repelled . | . . . . . . . . . Allies | -11 -10 -10 -8 -7 -7 -7 -7 -7 -------- Run | Yrd Mat Sub Mat Fac Was Fac Gar Sto Total Allies 21 | . . . . . 21 . . . Largest Group 21 | . . . . . 21 21 7 . Highest-Rated Group 600 | . . . . . 600 600 174 . Highest-Rated Ally 35 | . . . . . 35 35 35 . Initial Warlord ECA Mod 2 | . . . . . . . . 2 Total Orders . | . . . . . . . . . Ally Attacks 54 | . . . . . . . 54 . Total Damage 2745 | . . . . . . . 2745 . Kills 24 | . . . . . . . 24 . Allies Corrupted . | . . . . . . . . . Allies Melted . | . . . . . . . . . Intel | -11 -10 -10 -8 -7 -7 -7 -7 -7 ------- Run | Yrd Mat Sub Mat Fac Was Fac Gar Sto Active Infowar (turns) 125 | 12 24 57 . 32 . . . . Sensors 32 | . . . . 32 . . . . Seismic 93 | 12 24 57 . . . . . . Robot Analysis Total . | . . . . . . . . . Derelict Logs Recovered . | . . . . . . . . . Drone Launches . | . . . . . . . . . Drone Recoveries . | . . . . . . . . . Exploration | -11 -10 -10 -8 -7 -7 -7 -7 -7 ------------- Run | Yrd Mat Sub Mat Fac Was Fac Gar Sto Turns Passed 4549 | 85 24 134 366 908 437 53 1847 695 Spaces Moved 2188 | 48 27 165 281 532 347 42 568 178 Core 19 | 9 . . . . . . . 10 Treads 350 | . . . 6 . . . 176 168 Legs 303 | . . . . . . . 303 . Wheels 1510 | 39 27 165 275 532 347 42 83 . Hover 6 | . . . . . . . 6 . Flight . | . . . . . . . . . Fastest Speed 50 | 50 80 80 80 95 125 125 125 240 Average Speed 172 | 84 80 80 83 101 125 125 307 319 Slowest Speed 1650 | 100 80 80 160 140 125 125 1220 1650 Overloaded Moves . | . . . . . . . . . Propulsion Burnouts . | . . . . . . . . . Robots Hopped . | . . . . . . . . . Potential Cave-ins . | . . . . . . . . . Cave-ins Triggered . | . . . . . . . . . Exploration Rate (%) 28 | 3 2 14 26 13 97 3 71 28 Regions Visited 8 Branch Regions 2 Pre-discovered Areas . | . . . . . . . . . Known Exits Taken 1 | . . . . . . 1 . . Unknown Exits Taken 4 | 1 1 1 1 . . . . . Scrap Searched . | . . . . . . . . . Spaces Dug . | . . . . . . . . . Terrain Destroyed 209 | . . . 1 28 . . 4 176 Melee . | . . . . . . . . . Projectile 33 | . . . 1 16 . . 4 12 AOE 176 | . . . . 12 . . . 164 Terrain Rammed . | . . . . . . . . . Walls Destroyed . | . . . . . . . . . Machines Disabled . | . . . . . . . . . Actions | -11 -10 -10 -8 -7 -7 -7 -7 -7 --------- Run | Yrd Mat Sub Mat Fac Was Fac Gar Sto Total 2714 | 76 29 166 354 808 350 42 643 246 Wait 220 | . 2 . 2 167 . . 29 20 Move 2179 | 47 26 164 280 532 346 42 564 178 Hop . | . . . . . . . . . Pick Up 65 | 12 . 1 18 21 4 . 9 . Fast Attach . | . . . . . . . . . Attach 34 | 7 . . 9 8 . . 5 5 Detach . | . . . . . . . . . Swap 39 | 2 . 1 7 16 . . 4 9 Drop 25 | . . . 10 6 . . 8 1 Fire 120 | 8 . . 28 36 . . 15 33 Melee . | . . . . . . . . . Ram 23 | . 1 . . 22 . . . . Kick . | . . . . . . . . . Crush . | . . . . . . . . . Escape Stasis 9 | . . . . . . . 9 . Rewire . | . . . . . . . . . Trap . | . . . . . . . . . Miscellaneous . | . . . . . . . . . Route ------- -11/Scrapyard -10/Materials -10/Subcaves -8/Materials -7/Factory -7/Waste -7/Factory -7/Garrison (discovered 3 exits: *Sto x3) -7/Storage History --------- Turn | Location | Event 9 | -11/Scrapyard | Discovered new exit (range 16) 86 | -11/Scrapyard | Entered Materials 87 | -10/Materials | Met a group of wandering Federalists 89 | -10/Materials | Discovered new exit (range 10) 110 | -10/Materials | Entered Subcaves 110 | -10/Subcaves | Accompanied by 3 allies 111 | -10/Subcaves | Continued accompanying wandering Federalists (3) 111 | -10/Subcaves | Approached by a straggling Scientist 161 | -10/Subcaves | Shifting Twisted Machinery released Sub. Beam Cannon 187 | -10/Subcaves | Shifting Twisted Machinery released Piercing Trap 235 | -10/Subcaves | Discovered new exit (range 12) 244 | -10/Subcaves | Entered Materials 244 | -8/Materials | Evolved 4 slots: Propulsion x2, Weapon x2 574 | -8/Materials | Discovered new exit (range 7) 585 | -8/Materials | Lost 3 parts (2n1u) 610 | -8/Materials | Entered Factory 610 | -7/Factory | Evolved 2 slots: Utility x2 720 | -7/Factory | Build established: Scavenger-Gunner 1462 | -7/Factory | Lost 5 parts (1p2n2w) 1518 | -7/Factory | Sucked down chute 1518 | -7/Factory | Entered Waste 1519 | -7/Waste | Met a frightened Derelict 1519 | -7/Waste | Joined by Warlord forces that had cleared the area 1601 | -7/Waste | Discovered new exit (range 10) 1955 | -7/Waste | Entered Factory 1955 | -7/Factory | Accompanied by 21 allies 2008 | -7/Factory | Identified exit to Garrison 2008 | -7/Factory | Entered Garrison 2008 | -7/Garrison | Accompanied by 7 allies 2054 | -7/Garrison | Triggered checkpoint 2113 | -7/Garrison | Triggered checkpoint 2132 | -7/Garrison | Triggered checkpoint 2173 | -7/Garrison | Triggered checkpoint 2266 | -7/Garrison | Triggered checkpoint 2458 | -7/Garrison | Triggered checkpoint 2557 | -7/Garrison | Discovered new exit (range 10) 2587 | -7/Garrison | Attempted to access garrison exit controls, blocked by remote lockdown 2860 | -7/Garrison | Triggered checkpoint 3046 | -7/Garrison | Discovered new exit (range 13) 3086 | -7/Garrison | Attempted to access garrison exit controls, blocked by remote lockdown 3432 | -7/Garrison | Heavy support dispatched to Storage 3444 | -7/Garrison | Heavy support dispatched to Storage 3568 | -7/Garrison | Build established: Gunner 3592 | -7/Garrison | Triggered checkpoint 3751 | -7/Garrison | Discovered new exit (range 14) 3855 | -7/Garrison | Entered Storage 4064 | -7/Storage | Build established: Scavenger-Gunner 4255 | -7/Storage | First assault squad dispatched 4327 | -7/Storage | Core integrity fell below 50% 4419 | -7/Storage | Core integrity fell below 20% 4445 | -7/Storage | Lost 12 parts (1p4n1u6w) 4550 | -7/Storage | Self-destructed Last Messages --------------- K-01 Serf collects debris. R-06 Scavenger collects Sml. Storage Unit. K-01 Serf collects debris. ALERT: Potential suspicious activity detected, Programmers report to Storage Zone 1Q. K-01 Serf collects debris. R-06 Scavenger collects Aluminum Leg. K-01 Serf collects debris. The unstable cave ceiling collapses. K-01 Serf collects debris. The unstable cave ceiling collapses. ZIQKWC&HHR K-01 Serf collects debris. R-06 Scavenger collects Lgt. Ion Engine. K-01 Serf collects debris. K-01 Serf destroyed. Destroyed Tractor Beam. Hvy. Rocket Launcher destroyed. Destroyed Hvy. Rocket Launcher. Rocket Launcher destroyed. Map ----- +----------------------------------------------------+ | ?????????????????????????????????????????????????? | | ????????????????????????? ???????????????????????? | | ?????????????????????####"####???????????##??????? | | ???????????????????# #???????????# ??????? | | ???????????????????# #???????????# ??????? | | ??????????????????? ##??????????# ??????? | | ??????????????????# #??????????# ??????? | | ??????????????????? #??#####???# """"""? | | ?????????????#####?# #?##"# ##### ?? | | ???????????? + #?# # ??? | | ????????????? # #?# # ???? | | ????????????? # #?# * ##+###### | | ??????????????? #?#" # | | ????????????????## ####"" + | | ????????????????# o # ##" # | | ?????????????????? ! ### *## ###### | | ????????????????????#== # =**## #????? | | ?????????????????????%= k r! ## * ## #????? | | ?????????????????? ?=g g ### #+###### #????? | | ?????????????????? g m g #??# # # #?##+###### | | ??????????????????"" """ gg #??### ###?# | | ?????????????????""" """ #???## ##### """ """ | | ?????????????????""" R" #???# + """ """ | | ?????????????? """ #??### #### """ """ | | ????????????????? ## #??" # #??# | | ????????????????? ???# @ #??" # #??# | | ??????????????????????## #??" + #??# ! | | ???????????????????????## #??#T# #??# | | ????????????????????????# ##??### #??###"Y"### | | ????????????????????????# #?????# #????#"""?# | | ????????????????????????# #?###?# #????###??# | | ???????????????????????## k####### #?????????## | | ???????????????????????## #??????????# | | ???????????????????????## % #??????????? | | ???????????????????????## % +?????????## | | ???????????????????????################?????????#" | | ????????????????????????????????????????????????#" | | ????????????????????????????????????????????????#" | | ????????????????????????????????????????????????## | | ?????????????????????????????????????????????????? | | ?????????????????????????????????????????????????? | | ?????????????????????????????????????????????????? | | ?????????????????????????????????????????????????? | | ?????????????????????????????????????????????????? | | ?????????????????????????????????????????????????? | | ?????????????????????????????????????????????????? | | ?????????????????????????????????????????????????? | | ?????????????????????????????????????????????????? | | ?????????????????????????????????????????????????? | | ?????????????????????????????????????????????????? | +----------------------------------------------------+ Best States ------------- Heat Dissipation 53 Energy Generation 18 Energy Capacity 310 Matter Stores 300 Matter Capacity 300 Sight Range 16 Robot Scan Range 15 Terrain Scan Density 10 Armor Coverage 225 Evasion (%) 50 Targeting Accuracy 8 Core Analysis 6 Recoil Reduction 4 Matter Filtering 30 Item Schematics ----------------- None Robot Schematics ------------------ None Fabricated ------------ Nothing Repaired ---------- Nothing Studied --------- None Alien Tech Used ----------------- None Achievements -------------- Bumper Bots Ghost 'Em Hydra Maybe Next Time I'll Detach My Launcher Significant Disruption Strength In Numbers The More The Merrier We Are Legion Challenges ------------ None Game ------ Seed FluxGodDrillbomb Manual? 0 Play Time 01:02:18 Cumulative 7.7 hours Start 2026.03.21 @ 08:26:47 End 2026.03.21 @ 09:43:32 Sessions 1 Manual Loads 0 Difficulty Rogue Special Mode None Game No. 18 Rogue 18 Adventurer 0 Explorer 0 Win Type - Total 0 Types 0/0/0/0/0/0/0/0/0/0 Lore% 2 Gallery% 9 Achievement% 9 Wizard Run 0 Options --------- Layout 0 ASCII 0 Keyboard 0 Movement Numpad Keybinds 0 Fullscreen 1 Font 18/SmallcapsGlow Map View 76x50 Zoom Use 0% Tactical HUD 0 Map Filters NONE Filters NONE Steam 1 RUN: 353e9010-d9d0-4101-bb2b-74dae3d84547